bitfinex/quotes_ETHUSD_20230903
["timestamp","ask_amount","ask_price","bid_price","bid_amount"]
[1693746587589,1.6001368,1632.0,1631.4,2.2332]
[1693746588022,0.64005472,1632.0,1631.5,3.08185404]
[1693746588221,0.64005472,1632.1,1631.6,3.3081854]
[1693746588520,2.66477693,1632.2,1631.6,6.39003944]
[1693746588725,1.6001368,1632.2,1631.6,6.39003944]
[1693746589026,0.64005472,1632.2,1631.7,2.3209]
[1693746589422,3.3016555,1632.2,1631.7,2.3209]
[1693746589589,0.57004903,1632.1,1631.7,2.3209]
[1693746590229,0.64005472,1632.2,1631.7,2.3209]
[1693746590994,3.30164778,1632.2,1631.7,2.3209]
[1693746591195,0.64005472,1632.2,1631.7,2.3209]
[1693746591395,1.70466706,1632.2,1631.7,2.3209]
[1693746597201,1.70466706,1632.1,1631.7,2.3209]
[1693746597418,0.64005472,1632.1,1631.7,2.3209]
[1693746597822,2.66345472,1632.1,1631.7,2.3209]
[1693746601260,2.0234,1632.1,1631.7,2.3209]
[1693746603958,0.64005472,1632.2,1631.7,2.3209]
[1693746604255,0.56979507,1632.0,1631.7,2.3209]
[1693746604626,0.64005472,1632.3,1631.7,2.3209]
[1693746604829,2.1131,1632.2,1631.7,2.3209]
[1693746608263,2.75315472,1632.2,1631.7,3.15299]
[1693746608437,2.75315472,1632.2,1631.7,2.3209]
[1693746614033,3.7132368,1632.2,1631.7,2.3209]
[1693746614458,2.75315472,1632.2,1631.7,2.3209]
[1693746616742,0.96008208,1632.3,1631.8,6.08185404]
[1693746616743,1.6001368,1632.3,1631.8,6.08185404]
[1693746616948,3.7434368,1632.4,1631.8,6.69526909]
[1693746617135,2.78335472,1632.4,1631.9,0.66952691]
[1693746617672,2.78335472,1632.4,1632.0,2.157]
[1693746617974,3.7434368,1632.4,1632.0,2.157]
[1693746618963,1.70455981,1632.3,1632.0,2.157]
[1693746619168,2.26157237,1632.3,1632.0,2.157]
[1693746619336,1.19706728,1632.3,1632.0,2.157]
[1693746619740,0.55701256,1632.3,1632.0,2.157]
[1693746620375,3.7434368,1632.4,1632.0,2.157]
[1693746621870,1.704536,1632.3,1632.0,2.157]
[1693746623382,0.63854079,1632.3,1632.0,2.157]
[1693746623709,1.70303354,1632.3,1632.0,2.157]
[1693746623845,3.78019831,1632.3,1632.0,2.157]
[1693746624178,1.11895526,1632.3,1632.0,2.157]
[1693746624372,0.63854079,1632.3,1632.0,2.157]
[1693746624585,1.7030411,1632.3,1632.0,2.157]
[1693746625273,3.29978478,1632.3,1632.0,2.157]
[1693746628989,3.29978478,1632.3,1631.7,0.47890742]
[1693746628990,0.63854079,1632.2,1631.7,0.47890742]
[1693746629193,0.63854079,1632.2,1631.6,3.0]
[1693746629194,1.59635198,1632.2,1631.8,2.2033]
[1693746629492,2.02211158,1632.2,1631.8,2.2033]
[1693746629666,1.7030411,1632.1,1631.8,2.2033]
[1693746630395,3.29996048,1632.1,1631.8,2.2033]
[1693746630699,3.29996048,1632.1,1631.6,3.0]
[1693746630895,3.29996048,1632.1,1631.7,2.2998]
[1693746632900,0.00589122,1632.0,1631.7,2.2998]
[1693746634366,0.66667485,1631.9,1631.7,2.2998]
[1693746634785,0.00587559,1631.8,1631.7,2.2998]
[1693746641407,0.00587559,1631.8,1631.7,5.38165404]
[1693746641609,0.00587559,1631.8,1631.7,9.84368782]
[1693746641906,0.63854079,1632.2,1631.7,9.36368782]
[1693746642405,2.75982468,1632.1,1631.7,9.36368782]
[1693746642812,2.76554579,1632.1,1631.7,9.36368782]
[1693746644579,2.76554579,1632.1,1631.7,6.28183378]
[1693746644822,3.40408658,1632.1,1631.7,6.28183378]
[1693746645775,3.40408658,1632.1,1631.7,2.2998]
[1693746646010,1.70322724,1632.0,1631.4,4.1205656]
[1693746646180,3.30027231,1632.0,1631.5,5.38485404]
[1693746646529,4.2580835,1632.0,1631.5,2.303]
[1693746646848,3.30610486,1631.9,1631.4,0.47902487]
[1693746647126,1.92696247,1631.8,1631.2,0.28409872]
[1693746647335,3.63100987,1631.8,1631.2,0.28409872]
[1693746647540,1.9832,1631.7,1631.2,0.28409872]
[1693746647745,1.98888117,1631.7,1631.2,0.28409872]
[1693746648594,1.98888117,1631.7,1631.2,0.1]
[1693746648903,5.07073521,1631.7,1631.2,0.1]
[1693746649112,4.22746835,1631.6,1631.2,0.1]
[1693746649349,4.92289423,1631.6,1631.2,0.1]
[1693746649693,0.00567307,1631.5,1631.2,0.1]
[1693746664453,0.69536253,1631.4,1631.2,0.1]
[1693746664859,0.70104256,1631.4,1631.2,0.1]
[1693746673367,3.08185404,1631.3,1631.2,0.1]
[1693746673523,3.08185404,1631.3,1630.7,0.1]
[1693746673524,0.1,1631.1,1630.7,0.1]
[1693746674766,0.00562992,1631.0,1630.7,0.1]
[1693746674963,0.00562992,1631.0,1630.7,0.05]
[1693746679579,0.69363254,1630.9,1630.7,0.05]
[1693746681011,0.00561427,1630.8,1630.7,0.05]
[1693746681146,0.00561427,1630.8,1630.7,0.365]
[1693746681802,0.69363254,1630.9,1630.7,0.365]
[1693746682153,0.1,1631.1,1630.7,0.365]
[1693746682796,0.00562992,1631.0,1630.7,0.365]
[1693746686864,0.00562992,1631.0,1630.8,2.3066]
[1693746687773,1.70166098,1631.2,1630.8,2.3066]
[1693746687973,2.21554257,1631.2,1630.8,2.3066]
[1693746688173,1.15034702,1631.2,1630.8,2.3066]
[1693746688772,0.00564268,1631.1,1630.8,2.3066]
[1693746689806,1.15034702,1631.2,1630.8,2.3066]
[1693746690313,0.63646543,1631.2,1630.8,2.3066]
[1693746690821,0.00564268,1631.1,1630.8,2.3066]
[1693746691729,1.59427662,1631.2,1630.8,2.3066]
[1693746692032,4.25725702,1631.2,1630.8,2.3066]
[1693746692245,1.70165788,1631.1,1630.8,2.3066]
[1693746692389,0.63646543,1631.1,1630.8,2.3066]
[1693746692590,2.76446543,1631.1,1630.8,2.3066]
[1693746692806,0.00562642,1631.0,1630.8,2.3066]
[1693746694096,0.68618505,1630.9,1630.8,2.3066]
[1693746694817,0.69180364,1630.9,1630.8,2.3066]
[1693746697526,0.69180364,1630.9,1630.8,2.2901]
[1693746704861,0.70780364,1630.9,1630.8,2.2901]
[1693746712663,0.70780364,1630.9,1630.7,0.05]
[1693746717806,0.69180364,1630.9,1630.7,0.034]
[1693746718128,2.71780364,1630.9,1630.7,0.034]
[1693746723471,3.05341195,1630.9,1630.7,0.034]
[1693746737915,0.69180364,1630.9,1630.7,0.034]
[1693746738221,0.69180364,1630.9,1630.7,6.11585404]
[1693746738422,2.23397809,1631.3,1630.8,3.69526909]
[1693746738423,0.63827945,1631.3,1630.8,3.69526909]
[1693746738579,3.301037,1631.4,1630.8,7.33753071]
[1693746738784,2.23397809,1631.5,1630.8,7.33753071]
[1693746738785,0.00502631,1631.2,1630.9,3.73375307]
[1693746738985,0.00502631,1631.2,1631.0,3.08185404]
[1693746739398,0.7249187,1631.1,1631.0,3.08185404]
[1693746739686,0.00502631,1631.2,1631.0,4.67755304]
[1693746739986,0.63827945,1631.5,1631.0,4.67755304]
[1693746740187,0.63827945,1631.5,1631.1,0.4677553]
[1693746740688,0.63827945,1631.5,1631.1,2.7763553]
[1693746740689,1.59569863,1631.5,1631.1,2.7763553]
[1693746740889,0.00504195,1631.4,1631.1,2.7763553]
[1693746743627,0.59452052,1631.5,1631.1,2.7763553]
[1693746743809,0.00485613,1631.3,1631.1,2.7763553]
[1693746744806,2.02242912,1631.6,1631.1,2.7763553]
[1693746745006,3.61994551,1631.6,1631.1,2.7763553]
[1693746745951,0.00487177,1631.5,1631.1,2.7763553]
[1693746746732,1.06500836,1631.6,1631.1,2.7763553]
[1693746747754,0.00487177,1631.5,1631.1,2.7763553]
[1693746754068,0.72309222,1631.4,1631.1,2.7763553]
[1693746754971,0.00485613,1631.3,1631.1,2.7763553]
[1693746755337,0.72294514,1631.2,1631.1,2.7763553]
[1693746755746,0.72294514,1631.2,1631.1,0.4677553]
[1693746756023,0.72779345,1631.2,1631.1,0.4677553]
[1693746757065,0.72779345,1631.2,1630.9,6.35178728]
[1693746757360,0.00484831,1631.2,1630.9,3.35178728]
[1693746757557,0.72259342,1631.1,1630.9,6.35178728]
[1693746757935,0.00480309,1631.0,1630.9,6.35178728]
[1693746758859,2.1238,1631.5,1630.9,6.35178728]
[1693746759058,5.20565404,1631.5,1630.9,5.61803421]
[1693746759265,0.7228141,1631.4,1630.9,5.61803421]
[1693746759760,2.1423,1631.3,1630.9,5.61803421]
[1693746760065,2.14712656,1631.3,1630.9,5.61803421]
[1693746762766,2.14712656,1631.3,1630.9,2.61803421]
[1693746763131,2.14712656,1631.3,1630.9,5.1349]
[1693746765145,2.14712656,1631.3,1630.9,2.1349]
[1693746765372,2.14712656,1631.3,1630.9,5.1349]
[1693746765581,2.14712656,1631.3,1630.9,5.94839]
[1693746765760,2.14712656,1631.3,1630.9,9.03024404]
[1693746766072,0.00482656,1631.3,1630.9,9.03024404]
[1693746767008,0.7228141,1631.4,1630.9,9.03024404]
[1693746767815,0.00482656,1631.3,1630.9,9.03024404]
[1693746768114,0.00482656,1631.3,1631.0,3.98487844]
[1693746768816,0.7228141,1631.4,1631.0,3.98487844]
[1693746769116,0.72266699,1631.2,1631.0,3.98487844]
[1693746769504,2.1108,1631.5,1631.0,3.98487844]
[1693746769901,0.00481092,1631.1,1631.0,3.98487844]
[1693746770983,2.1108,1631.5,1631.0,3.98487844]
[1693746771412,2.1108,1631.5,1631.1,0.39848784]
[1693746771584,0.7228141,1631.4,1631.1,0.39848784]
[1693746771784,0.72764848,1631.4,1631.1,0.39848784]
[1693746780662,1.36570439,1631.4,1631.1,0.39848784]
[1693746781549,1.36570439,1631.4,1630.9,5.1349]
[1693746782081,2.0445,1631.3,1630.9,5.1349]
[1693746782882,0.00462253,1631.2,1630.9,5.1349]
[1693746783459,0.00462253,1631.2,1630.9,5.77812199]
[1693746784082,0.72259342,1631.1,1630.9,5.77812199]
[1693746784248,0.72259342,1631.1,1630.9,6.75241749]
[1693746784449,0.00462253,1631.2,1630.9,6.75241749]
[1693746785509,0.00462253,1631.2,1630.9,3.75241749]
[1693746785786,0.00462253,1631.2,1630.9,6.75241749]
[1693746786782,2.68386641,1631.3,1630.9,6.75241749]
[1693746787887,0.00462253,1631.2,1630.9,6.75241749]
[1693746788064,0.00462253,1631.2,1631.0,0.67524175]
[1693746789089,0.72259342,1631.1,1631.0,0.67524175]
[1693746789804,0.00462253,1631.2,1631.0,0.67524175]
[1693746790105,0.72259342,1631.1,1631.0,0.67524175]
[1693746790468,2.0445,1631.3,1631.0,0.67524175]
[1693746790664,2.0445,1631.3,1630.9,6.74295498]
[1693746790882,0.72254704,1631.1,1630.9,6.74295498]
[1693746791299,0.00462253,1631.2,1630.9,6.74295498]
[1693746792073,0.00462253,1631.2,1630.9,5.77812199]
[1693746793274,0.00462253,1631.2,1630.9,2.77812199]
[1693746793579,0.00462253,1631.2,1630.9,6.50116016]
[1693746794523,0.00462253,1631.2,1630.9,3.50116016]
[1693746794895,0.00462253,1631.2,1630.9,2.85793817]
[1693746795096,0.00462253,1631.2,1630.8,4.13064869]
[1693746795305,0.00462253,1631.2,1630.8,6.38874869]
[1693746795975,0.00462253,1631.2,1630.8,7.35358168]
[1693746796177,0.00462253,1631.2,1630.9,3.0]
[1693746797208,0.00462253,1631.2,1630.9,3.64322199]
[1693746797411,0.00462253,1631.2,1630.9,4.67858016]
[1693746798527,0.00462253,1631.2,1630.9,4.03535817]
[1693746799257,0.72245429,1631.1,1630.9,4.03535817]
[1693746799660,0.00462253,1631.2,1630.9,4.03535817]
[1693746799967,0.00459095,1631.0,1630.9,4.03535817]
[1693746800653,0.72697165,1631.0,1630.9,4.03535817]
[1693746800959,0.7223807,1631.0,1630.9,4.03535817]
[1693746801361,2.68386641,1631.3,1630.9,4.03535817]
[1693746801519,3.04815801,1631.3,1630.9,3.0]
[1693746801919,0.0046066,1631.2,1630.9,3.0]
[1693746804790,0.0046066,1631.2,1630.9,3.64322199]
[1693746804989,0.0046066,1631.2,1630.9,3.0]
[1693746805990,0.63946689,1631.5,1631.2,6.438]
[1693746806175,0.63946689,1631.8,1631.4,3.0]
[1693746806378,0.95920033,1631.9,1631.4,3.64322199]
[1693746806379,0.63946689,1631.9,1631.4,3.64322199]
[1693746806577,0.63946689,1631.9,1631.4,3.0]
[1693746806752,0.00412607,1631.8,1631.4,3.0]
[1693746807354,2.03132607,1631.8,1631.4,3.0]
[1693746807588,2.03132607,1631.8,1631.4,3.7287022]
[1693746807976,2.03132607,1631.8,1631.4,4.34211725]
[1693746808192,2.03132607,1631.8,1631.4,6.60351725]
[1693746808685,0.00412607,1631.8,1631.4,6.60351725]
[1693746808990,0.63946689,1632.4,1631.7,6.72507603]
[1693746809153,0.63946689,1632.4,1631.9,3.0]
[1693746809486,1.70392167,1632.4,1631.9,6.69526909]
[1693746809876,0.0038449,1632.3,1631.9,6.69526909]
[1693746810277,0.0038449,1632.3,1631.8,4.713055]
[1693746810278,0.64331179,1632.3,1631.8,4.713055]
[1693746810604,0.63946689,1632.2,1631.8,2.2614]
[1693746810888,0.62839412,1632.2,1631.8,2.2614]
[1693746811099,0.00383709,1632.2,1631.8,2.2614]
[1693746812011,0.00383709,1632.2,1631.7,3.0]
[1693746812213,1.70794329,1632.2,1631.7,3.0]
[1693746813295,0.00383709,1632.2,1631.7,3.0]
[1693746814313,0.80734775,1632.1,1631.7,3.0]
[1693746814679,0.00383709,1632.2,1631.7,3.0]
[1693746814886,0.00382146,1632.0,1631.7,3.0]
[1693746815214,0.00382146,1632.0,1631.7,3.52948]
[1693746815918,2.62116689,1632.3,1631.7,3.52948]
[1693746816218,2.62116689,1632.3,1631.7,3.0]
[1693746816510,0.80745799,1632.2,1631.7,6.08185404]
[1693746816901,0.00382928,1632.1,1631.7,6.08185404]
[1693746817881,0.80745799,1632.2,1631.7,6.08185404]
[1693746818793,0.00382928,1632.1,1631.8,3.08185404]
[1693746818993,0.00382928,1632.1,1631.9,6.3081854]
[1693746819202,0.00382928,1632.1,1631.9,9.39003944]
[1693746819801,0.80745799,1632.2,1631.9,9.39003944]
[1693746820833,0.00382928,1632.1,1631.9,6.39003944]
[1693746821135,0.00382928,1632.1,1632.0,0.63900394]
[1693746821631,0.00382928,1632.1,1632.0,3.72085798]
[1693746821829,0.80745799,1632.2,1632.0,3.72085798]
[1693746822331,0.101,1632.6,1632.0,3.72085798]
[1693746822836,2.09910033,1632.5,1632.1,2.3418]
[1693746823034,2.09910033,1632.5,1632.1,2.9480658]
[1693746824233,0.00370033,1632.5,1632.1,9.02991984]
[1693746825109,0.00370033,1632.5,1632.2,3.56185404]
[1693746825314,0.00370033,1632.5,1632.2,3.08185404]
[1693746829448,0.80961035,1632.4,1632.2,3.08185404]
[1693746829637,0.80961035,1632.4,1632.3,0.3081854]
[1693746829861,0.80961035,1632.4,1632.3,3.39003944]
[1693746830036,0.101,1632.6,1632.3,3.39003944]
[1693746830958,0.00372075,1632.5,1632.3,3.39003944]
[1693746832653,0.00372075,1632.5,1632.4,3.08185404]
[1693746832853,0.00372075,1632.5,1632.4,6.42085798]
[1693746833824,0.101,1632.6,1632.4,6.42085798]
[1693746834350,0.80972052,1632.5,1632.4,6.42085798]
[1693746834524,0.101,1632.6,1632.4,6.42085798]
[1693746834933,0.81344127,1632.5,1632.4,6.42085798]
[1693746835661,0.00372075,1632.5,1632.4,6.42085798]
[1693746835862,0.101,1632.6,1632.4,6.42085798]
[1693746836041,0.101,1632.6,1632.5,0.6420858]
[1693746836851,0.10472855,1632.6,1632.5,0.6420858]
[1693746840690,0.10472855,1632.6,1632.4,2.60220394]
[1693746840837,0.10472855,1632.6,1632.2,6.0]
[1693746841039,0.10472855,1632.6,1632.3,3.08185404]
[1693746844439,0.81088201,1632.5,1632.3,3.08185404]
[1693746844633,0.10472855,1632.6,1632.3,3.08185404]
[1693746844958,0.00371294,1632.4,1632.3,3.99003944]
[1693746845835,0.101,1632.6,1632.3,3.99003944]
[1693746846239,0.81077183,1632.4,1632.3,3.99003944]
[1693746846541,0.101,1632.6,1632.3,3.99003944]
[1693746846955,0.81077183,1632.4,1632.3,3.99003944]
[1693746847154,0.00372075,1632.5,1632.3,3.99003944]
[1693746847943,0.81077183,1632.4,1632.3,3.99003944]
[1693746848472,0.101,1632.6,1632.3,3.99003944]
[1693746848874,0.00372075,1632.5,1632.3,3.99003944]
[1693746850237,0.00372075,1632.5,1632.4,0.39900394]
[1693746852677,1.70749703,1632.5,1632.4,0.39900394]
[1693746853546,3.30396138,1632.5,1632.4,0.39900394]
[1693746853748,1.70749703,1632.5,1632.4,0.39900394]
[1693746854479,3.30395199,1632.5,1632.4,0.39900394]
[1693746857596,4.26315232,1632.5,1632.4,0.39900394]
[1693746858584,3.30395199,1632.5,1632.3,3.08185404]
[1693746858782,0.64318764,1632.5,1632.3,3.08185404]
[1693746858979,1.70749588,1632.5,1632.3,3.08185404]
[1693746859197,3.30395623,1632.5,1632.3,3.08185404]
[1693746859373,0.81077183,1632.4,1632.3,3.08185404]
[1693746859572,0.81077183,1632.4,1632.3,3.99003944]
[1693746860092,0.81448477,1632.4,1632.3,3.99003944]
[1693746874161,0.54387555,1632.4,1632.3,3.99003944]
[1693746877089,0.54387555,1632.4,1632.3,9.69150947]
[1693746877295,0.00371294,1632.4,1632.3,9.69150947]
[1693746877492,0.00371294,1632.4,1632.3,8.72667648]
[1693746877806,0.101,1632.6,1632.5,3.0]
[1693746878009,0.101,1632.6,1632.5,6.08185404]
[1693746878221,0.101,1632.6,1632.5,6.69003944]
[1693746878423,0.61113711,1632.6,1632.5,6.69003944]
[1693746879023,0.61455845,1632.6,1632.5,6.69003944]
[1693746879191,0.61455845,1632.6,1632.5,12.75422349]
[1693746879387,0.61455845,1632.6,1632.5,13.87703518]
[1693746879659,0.61455845,1632.6,1632.5,13.23422349]
[1693746880161,0.61455845,1632.6,1632.5,13.87703518]
[1693746880516,0.61455845,1632.6,1632.5,13.23422349]
[1693746881558,0.101,1632.9,1632.8,3.0]
[1693746881769,0.101,1632.9,1632.8,9.56185404]
[1693746883696,0.101,1632.9,1632.8,15.99985404]
[1693746884156,0.101,1632.9,1632.8,9.56185404]
[1693746885840,0.101,1632.9,1632.8,15.99985404]
[1693746886050,0.101,1632.9,1632.8,17.59983944]
[1693746889158,0.58502163,1632.9,1632.8,17.59983944]
[1693746893106,0.58502163,1632.9,1632.8,10.68183944]
[1693746894386,0.58502163,1632.9,1632.8,11.6532085]
[1693746896947,0.58502163,1632.9,1632.8,18.0912085]
[1693746897280,0.101,1632.9,1632.8,18.70462355]
[1693746900776,0.101,1632.9,1632.8,11.78662355]
[1693746900961,0.101,1632.9,1632.8,11.1732085]
[1693746902353,0.101,1632.9,1632.8,8.1732085]
[1693746902555,0.101,1632.9,1632.8,6.5732231]
[1693746903705,0.101,1632.9,1632.8,9.5732231]
[1693746904413,0.101,1632.9,1632.8,10.0532231]
[1693746904613,0.101,1632.9,1632.8,16.4912231]
[1693746904813,0.101,1632.9,1632.8,10.0532231]
[1693746905040,0.101,1632.9,1632.8,18.14034541]
[1693746906109,0.101,1632.9,1632.8,18.75376046]
[1693746913704,0.02977565,1632.9,1632.8,18.75376046]
[1693746916155,0.02977565,1632.9,1632.8,19.69395913]
[1693746920729,0.02977565,1632.9,1632.8,20.53642497]
[1693746924932,0.02977565,1632.9,1632.8,21.17923666]
[1693746925642,0.02977565,1632.9,1632.8,22.1434542]
[1693746926255,0.02977565,1632.9,1632.8,21.17923666]
[1693746926570,0.02977565,1632.9,1632.8,22.1434542]
[1693746927991,0.02977565,1632.9,1632.8,28.57186835]
[1693746928468,0.02977565,1632.9,1632.8,30.17889758]
[1693746928634,0.02977565,1632.9,1632.8,27.28624496]
[1693746928833,0.02977565,1632.9,1632.8,28.56939492]
[1693746929437,0.02977565,1632.9,1632.8,30.17333238]
[1693746929761,0.02977565,1632.9,1632.8,28.89018242]
[1693746929967,0.05184309,1633.2,1633.0,11.438]
[1693746930148,0.05184309,1633.2,1633.1,23.58406909]
[1693746930560,0.05184309,1633.2,1633.1,29.7577747]
[1693746931291,2.0015,1633.6,1633.5,9.438]
[1693746931292,1.71496511,1633.6,1633.5,9.438]
[1693746931493,1.71496511,1633.6,1633.5,15.51985404]
[1693746931776,1.71496511,1633.6,1633.5,17.07183944]
[1693746931935,1.71496511,1633.6,1633.5,17.55183944]
[1693746932402,2.33783822,1634.0,1633.5,17.55183944]
[1693746932403,0.101,1634.0,1633.9,3.0]
[1693746932596,0.67933495,1634.1,1633.9,9.56185404]
[1693746932889,0.101,1634.2,1633.9,9.08185404]
[1693746933043,1.05964495,1634.2,1633.9,6.08185404]
[1693746933250,0.101,1634.2,1634.0,3.08185404]
[1693746933490,0.67822546,1634.1,1634.0,3.08185404]
[1693746933645,0.67822546,1634.1,1634.0,3.56185404]
[1693746934071,2.2332,1634.2,1634.0,3.08185404]
[1693746934476,0.60286708,1634.1,1634.0,3.08185404]
[1693746935156,2.2332,1634.2,1634.0,3.56185404]
[1693746935787,0.67822546,1634.1,1634.0,3.56185404]
[1693746935995,0.68338317,1634.1,1634.0,3.56185404]
[1693746936164,0.00515771,1634.1,1634.0,3.56185404]
[1693746936862,2.2332,1634.2,1634.0,3.56185404]
[1693746937183,0.67822546,1634.1,1634.0,5.79505404]
[1693746937379,0.67822546,1634.1,1634.0,7.31835944]
[1693746937586,2.2332,1634.2,1634.0,7.31835944]
[1693746937961,0.60802479,1634.1,1634.0,7.31835944]
[1693746938265,0.00515771,1634.1,1634.0,7.31835944]
[1693746938985,2.2332,1634.2,1634.0,10.31835944]
[1693746939480,0.60286708,1634.1,1634.0,10.31835944]
[1693746939681,0.60286708,1634.1,1634.0,16.75635944]
[1693746940068,2.2332,1634.2,1634.0,16.75635944]
[1693746940399,2.2332,1634.2,1634.1,3.56185404]
[1693746941094,2.2383655,1634.2,1634.1,3.56185404]
[1693746941267,2.2383655,1634.2,1634.1,5.23748998]
[1693746943704,2.2383655,1634.2,1634.1,14.67548998]
[1693746943885,2.2383655,1634.2,1634.1,17.67548998]
[1693746946885,2.2332,1634.2,1634.1,17.67548998]
[1693746950088,2.2332,1634.2,1634.1,11.23748998]
[1693746953025,2.2332,1634.2,1634.1,10.75748998]
[1693746954288,2.2332,1634.2,1634.1,11.24198825]
[1693746956256,2.2332,1634.2,1634.1,3.56635231]
[1693746956458,2.2332,1634.2,1634.1,3.08185404]
[1693746956781,2.2332,1634.2,1633.6,2.09828594]
[1693746956782,0.101,1634.2,1633.5,2.4599299]
[1693746957073,0.101,1634.2,1633.7,3.0]
[1693746957369,2.66025063,1634.1,1633.8,3.08185404]
[1693746957842,0.00513216,1634.0,1633.8,3.08185404]
[1693746964198,0.60250423,1633.9,1633.8,3.08185404]
[1693746964569,0.60250423,1633.9,1633.8,3.93492244]
[1693746964914,0.6076335,1633.9,1633.8,3.93492244]
[1693746968929,0.6076335,1633.9,1633.8,4.41492244]
[1693746969142,0.6076335,1633.9,1633.8,7.41492244]
[1693746970809,0.6076335,1633.9,1633.8,8.47822512]
[1693746972351,0.6076335,1633.9,1633.8,14.91620285]
[1693746974570,0.6076335,1633.9,1633.8,15.55678573]
[1693746974922,0.6076335,1633.9,1633.8,15.87707717]
[1693746976028,0.6076335,1633.9,1633.8,16.5182509]
[1693746976358,0.6076335,1633.9,1633.8,16.51825639]
[1693746978367,0.6076335,1633.9,1633.8,16.51848019]
[1693746978681,0.6076335,1633.9,1633.8,16.51849593]
[1693746978981,0.6076335,1633.9,1633.8,16.51849525]
[1693746979680,0.00512927,1633.9,1633.8,16.51849525]
[1693746979886,0.101,1634.2,1634.0,3.0]
[1693746980050,0.101,1634.2,1634.1,3.08185404]
[1693746980446,0.101,1634.2,1634.1,3.69003944]
[1693746980985,0.1059308,1634.2,1634.1,3.69003944]
[1693746986048,0.1059308,1634.2,1634.1,4.75318467]
[1693746986294,0.1059308,1634.2,1634.1,14.19118467]
[1693746986462,0.1059308,1634.2,1634.1,7.75318467]
[1693746994420,0.70908285,1634.2,1634.1,7.75318467]
[1693746995919,0.70908285,1634.2,1634.1,8.23758941]
[1693746996422,0.70908285,1634.2,1634.1,9.79758941]
[1693746996725,0.70908285,1634.2,1634.1,10.27758941]
[1693747003726,0.70908285,1634.2,1634.1,9.79758941]
[1693747003893,0.70908285,1634.2,1634.1,9.18940401]
[1693747008003,0.70908285,1634.2,1634.1,9.18936796]
[1693747018750,0.70908285,1634.2,1634.1,5.70496322]
[1693747020352,0.70908285,1634.2,1634.1,4.14496322]
[1693747024055,0.70908285,1634.2,1634.1,1.06310918]
[1693747024722,1.02450054,1634.2,1634.1,1.06310918]
[1693747030475,1.02450054,1634.2,1634.1,1.70452726]
[1693747032668,1.02450054,1634.2,1633.9,0.64141808]
[1693747032969,1.02450054,1634.2,1633.9,1.06331932]
[1693747033168,1.02450054,1634.2,1633.8,0.64141808]
[1693747033570,1.02450054,1634.2,1633.7,1.6022924]
[1693747033571,1.9604,1634.1,1633.7,1.6022924]
[1693747033736,1.9604,1634.1,1633.7,2.65790261]
[1693747033938,0.00491331,1634.0,1633.7,2.65790261]
[1693747034741,0.00491331,1634.0,1633.8,1.05561021]
[1693747034968,1.9604,1634.1,1633.7,0.64141808]
[1693747035160,1.9604,1634.1,1633.7,1.69665755]
[1693747035437,0.61944104,1633.9,1633.7,1.69665755]
[1693747035668,1.9604,1634.1,1633.7,1.69665755]
[1693747035944,0.00490339,1633.8,1633.7,1.69665755]
[1693747036773,0.62428166,1633.8,1633.7,1.05523947]
[1693747036977,0.61937827,1633.8,1633.7,1.05523947]
[1693747037347,1.9604,1634.1,1633.7,1.05523947]
[1693747037546,2.31322,1634.1,1633.7,1.05523947]
[1693747037961,0.00491899,1634.0,1633.7,1.05523947]
[1693747038586,0.00491899,1634.0,1633.7,2.61523947]
[1693747038790,0.00491899,1634.0,1633.7,1.56]
[1693747039295,0.61944104,1633.9,1633.7,1.56]
[1693747039999,0.00490339,1633.8,1633.7,1.56]
[1693747040195,0.00490339,1633.8,1633.7,2.61413838]
[1693747040894,0.61944104,1633.9,1633.7,2.61413838]
[1693747041087,0.61944104,1633.9,1633.6,2.69596904]
[1693747041286,2.31322,1634.1,1633.7,1.03984861]
[1693747041867,0.00491899,1634.0,1633.7,1.03984861]
[1693747043785,0.00491899,1634.0,1633.6,5.136405]
[1693747045909,0.00491899,1634.0,1633.7,1.56]
[1693747053019,0.00491899,1634.0,1633.9,1.56]
[1693747054316,0.62442279,1634.0,1633.9,1.56]
[1693747055626,0.62442279,1634.0,1633.9,4.64185404]
[1693747055835,0.62442279,1634.0,1633.9,5.40603944]
[1693747065666,0.62442279,1634.0,1633.9,6.44620481]
[1693747080316,0.62442279,1634.0,1633.9,7.08762289]
[1693747083395,0.62442279,1634.0,1633.9,6.44620481]
[1693747083737,0.62442279,1634.0,1633.9,5.68201941]
[1693747084641,0.62442279,1634.0,1633.7,4.69631808]
[1693747084936,0.93363967,1634.0,1633.8,1.04133386]
[1693747099157,0.93363967,1634.0,1633.8,5.67605194]
[1693747099322,0.93363967,1634.0,1633.9,1.04133386]
[1693747113611,0.93363967,1634.0,1633.7,2.20141808]
[1693747113758,0.93363967,1634.0,1633.8,1.03575237]
[1693747118578,0.93363967,1634.0,1633.8,1.67717045]
[1693747119890,0.93363967,1634.0,1633.7,3.1622924]
[1693747120094,0.93363967,1634.0,1633.8,0.99909558]
[1693747124696,0.93363967,1634.0,1633.8,1.64051366]
[1693747126318,0.93363967,1634.0,1633.8,0.99909558]
[1693747126484,0.93363967,1634.0,1633.6,3.53086904]
[1693747126685,0.93363967,1634.0,1633.7,0.98543038]
[1693747126870,1.38316556,1634.0,1633.7,0.98543038]
[1693747127070,2.02161325,1634.0,1633.7,0.98543038]
[1693747127478,1.38316556,1634.0,1633.7,0.98543038]
[1693747129011,0.93363967,1634.0,1633.7,0.98543038]
[1693747133234,0.93363967,1634.0,1633.7,4.06728442]
[1693747133421,0.93363967,1634.0,1633.7,3.08185404]
[1693747133627,0.88363967,1634.0,1633.7,3.08185404]
[1693747134027,0.00473656,1633.9,1633.7,3.08185404]
[1693747134340,0.92336087,1633.8,1633.7,3.84967125]
[1693747134542,0.92336087,1633.8,1633.7,4.65516411]
[1693747134839,0.00473656,1633.9,1633.7,4.65516411]
[1693747135039,0.00472877,1633.8,1633.7,3.84967125]
[1693747135245,2.50867646,1634.1,1633.7,4.65515521]
[1693747135445,2.50867646,1634.1,1633.7,3.84967125]
[1693747135941,0.00456248,1634.0,1633.7,3.84967125]
[1693747141357,0.92345503,1633.9,1633.7,3.84967125]
[1693747142164,0.00454689,1633.8,1633.7,3.84967125]
[1693747142326,0.00454689,1633.8,1633.7,4.65507155]
[1693747142969,0.92345503,1633.9,1633.7,4.65507155]
[1693747143177,0.92345503,1633.9,1633.7,3.84967125]
[1693747143579,2.50867646,1634.1,1633.7,3.84967125]
[1693747143754,2.86541126,1634.1,1633.8,2.5606]
[1693747144079,0.00456248,1634.0,1633.8,2.5606]
[1693747144240,0.92811167,1634.0,1633.8,2.5606]
[1693747149382,2.87711167,1634.0,1633.8,2.5606]